bitfinex/quotes_SOLUSD_20250301
["timestamp","ask_amount","ask_price","bid_price","bid_amount"]
[1740809879984,80.7,144.35,144.34,0.063]
[1740809883587,5.5417,144.36,144.34,0.063]
[1740809884093,5.5401,144.4,144.34,0.063]
[1740809884271,80.7,144.39,144.34,0.063]
[1740809884474,99.34964886,144.38,144.34,0.063]
[1740809884872,80.7,144.37,144.34,0.063]
[1740809885071,80.7,144.36,144.34,0.063]
[1740809885585,5.542,144.35,144.34,0.063]
[1740809885760,86.2417,144.36,144.34,0.063]
[1740809886687,80.7,144.36,144.34,0.063]
[1740809887983,5.541,144.38,144.34,0.063]
[1740809888982,0.03,144.37,144.34,0.063]
[1740809890179,18.67964886,144.37,144.34,0.063]
[1740809890978,5.5417,144.36,144.34,0.063]
[1740809892393,0.03,144.37,144.34,0.063]
[1740809892601,5.5713,144.37,144.34,0.063]
[1740809893397,3.45974172,144.36,144.34,0.063]
[1740809893601,5.542,144.35,144.34,0.063]
[1740809895494,86.242,144.35,144.34,0.063]
[1740809895870,5.542,144.35,144.34,0.063]
[1740809897987,0.03,144.37,144.34,0.063]
[1740809900588,5.5417,144.36,144.34,0.063]
[1740809909699,5.5417,144.36,144.3,0.063]
[1740809909909,19.3959,144.36,144.3,0.063]
[1740809913393,5.5428,144.33,144.3,0.063]
[1740809913693,86.2428,144.33,144.3,0.063]
[1740809919923,80.7,144.33,144.3,0.063]
[1740809920519,5.5417,144.36,144.3,0.063]
[1740809921510,5.5713,144.37,144.3,0.063]
[1740809924823,19.4245,144.37,144.3,0.063]
[1740809925210,80.7,144.36,144.3,0.063]
[1740809925606,80.7,144.35,144.3,0.063]
[1740809926019,80.7,144.34,144.3,0.063]
[1740809926217,80.7,144.33,144.3,0.063]
[1740809927323,5.5432,144.32,144.3,0.063]
[1740809929944,86.2432,144.32,144.3,0.063]
[1740809932007,20.0,144.28,144.18,77.50254157]
[1740809932224,87.5,144.27,144.18,77.50254157]
[1740809933217,5.5455,144.26,144.18,77.50254157]
[1740809934827,5.5455,144.26,144.18,83.05104157]
[1740809937559,5.5455,144.26,144.18,83.11404157]
[1740809939450,80.7,144.27,144.18,96.98554157]
[1740809939747,80.7,144.27,144.19,18.64964886]
[1740809939951,12.3443,144.29,144.19,96.15219043]
[1740809940163,87.5,144.29,144.19,230.61773744]
[1740809940327,87.5,144.29,144.19,239.37773744]
[1740809941029,93.0444,144.29,144.19,237.37773744]
[1740809941537,93.0444,144.29,144.2,5.5478]
[1740809942953,106.9053,144.29,144.22,20.0]
[1740809943133,80.7,144.28,144.22,20.0]
[1740809943334,80.7,144.28,144.2,18.64964886]
[1740809943754,12.3444,144.29,144.2,230.61773744]
[1740809944455,5.5444,144.29,144.2,230.61773744]
[1740809944954,80.7,144.28,144.19,5.5482]
[1740809945139,80.7,144.27,144.19,5.5482]
[1740809945635,80.7,144.27,144.18,83.11394157]
[1740809945854,100.1053,144.29,144.19,18.64964886]
[1740809946550,86.2444,144.29,144.19,18.64964886]
[1740809946744,86.2444,144.29,144.19,77.50254157]
[1740809946950,100.1053,144.29,144.2,24.19744886]
[1740809947854,100.1053,144.29,144.19,83.05054157]
[1740809949656,86.2444,144.29,144.2,18.64964886]
[1740809950551,86.2444,144.29,144.2,96.15219043]
[1740809951240,86.2444,144.29,144.21,5.5474]
[1740809951939,86.2444,144.29,144.22,18.64964886]
[1740809952158,5.5444,144.29,144.22,96.15219043]
[1740809953263,5.574,144.3,144.22,83.04934157]
[1740809954259,19.434,144.3,144.22,77.50254157]
[1740809954460,19.434,144.3,144.22,83.04954157]
[1740809956670,19.434,144.3,144.22,77.50254157]
[1740809957091,87.1583,144.29,144.18,77.56554157]
[1740809957275,84.23165194,144.28,144.18,77.56554157]
[1740809957951,80.7,144.27,144.18,77.56554157]
[1740809958150,80.7,144.26,144.18,77.56554157]
[1740809958354,82.8029,144.25,144.18,0.063]
[1740809958855,19.412,144.24,144.18,0.063]
[1740809959071,80.7,144.23,144.18,0.063]
[1740809960481,22.88771935,144.24,144.18,0.063]
[1740809960482,20.0,144.2,144.18,0.063]
[1740809960664,86.2474,144.21,144.18,0.063]
[1740809961474,80.7,144.21,144.18,0.063]
[1740809965680,86.2475,144.21,144.18,0.063]
[1740809966464,80.7,144.21,144.18,0.063]
[1740809966780,5.5472,144.22,144.18,0.063]
[1740809969158,20.0,144.18,144.12,3.0]
[1740809969360,20.0,144.14,144.12,3.0]
[1740809969588,80.7,144.13,144.03,77.56554157]
[1740809969789,20.0,144.09,144.03,0.063]
[1740809969987,3.42922216,144.09,144.03,0.063]
[1740809970302,9.0687,144.11,144.03,0.063]
[1740809970470,9.0687,144.11,144.0,6.443]
[1740809970673,80.7,144.1,144.0,83.94554157]
[1740809971285,5.552,144.09,144.0,77.50254157]
[1740809971489,5.552,144.09,144.0,84.38254157]
[1740809973903,5.552,144.09,144.0,89.93804157]
[1740809974099,5.5516,144.11,144.01,20.64964886]
[1740809974287,5.5516,144.11,144.01,22.64964886]
[1740809974493,5.5516,144.11,144.01,24.10694944]
[1740809974802,5.5516,144.11,144.03,18.64964886]
[1740809974993,5.5516,144.11,144.03,230.61773744]
[1740809975190,5.5509,144.12,144.03,211.96808858]
[1740809976377,80.7,144.11,144.01,6.86]
[1740809977005,3.5275781,144.1,144.01,6.86]
[1740809977208,5.552,144.09,144.01,6.86]
[1740809980697,5.552,144.09,144.02,5.5547]
[1740809981206,80.7,144.11,144.02,5.5547]
[1740809981389,5.5517,144.1,144.03,18.64964886]
[1740809981575,5.5509,144.12,144.04,2.0]
[1740809981775,80.7,144.15,144.05,18.64964886]
[1740809981995,80.7,144.15,144.05,232.61773744]
[1740809982179,80.7,144.15,144.06,6.84]
[1740809982493,86.2498,144.15,144.06,6.84]
[1740809982900,80.7,144.15,144.06,6.84]
[1740809983099,132.6738914,144.17,144.07,18.64964886]
[1740809983398,129.269,144.17,144.07,24.20244886]
[1740809983590,80.7,144.16,144.07,77.50254157]
[1740809984986,5.5497,144.15,144.07,83.05534157]
[1740809985795,86.2494,144.16,144.07,89.41154157]
[1740809986688,86.2794,144.16,144.07,89.41154157]
[1740809987609,80.7,144.15,144.07,11.909]
[1740809988386,80.7,144.14,144.05,79.55274157]
[1740809988613,80.7,144.13,144.05,5.5536]
[1740809988813,80.7,144.12,144.05,5.5536]
[1740809989897,80.7,144.15,144.05,231.40568858]
[1740809990401,80.7,144.15,144.06,2.0]
[1740809990602,80.7,144.15,144.06,215.42510749]
[1740809990787,80.7,144.15,144.07,18.64964886]
[1740809990981,0.03,144.16,144.07,211.96808858]
[1740809991184,5.5794,144.16,144.07,211.96808858]
[1740809992007,0.03,144.16,144.07,211.96808858]
[1740809992386,0.03,144.16,144.09,5.552]
[1740809992583,0.03,144.16,144.09,83.05454157]
[1740809992790,0.03,144.16,144.09,96.93474157]
[1740809993797,0.03,144.16,144.1,24.90744886]
[1740809994284,0.03,144.16,144.11,5.5513]
[1740809994489,0.03,144.16,144.11,19.4295]
[1740809994994,0.03,144.16,144.1,11.8094]
[1740809995194,0.03,144.16,144.1,83.76034157]
[1740809995807,0.03,144.16,144.1,89.31184157]
[1740809996001,0.03,144.16,144.1,83.76034157]
[1740809997216,0.03,144.16,144.08,2.1838]
[1740809997709,0.03,144.16,144.08,7.7362]
[1740809998608,0.03,144.16,144.09,18.64964886]
[1740809998997,0.03,144.16,144.09,20.10631712]
[1740810001008,0.03,144.16,144.09,234.0744057]
[1740810001313,0.03,144.16,144.11,25.04244886]
[1740810001696,0.03,144.16,144.11,238.46703186]
[1740810002016,0.03,144.16,144.11,239.01053744]
[1740810002797,0.03,144.16,144.13,18.64964886]
[1740810003003,0.03,144.16,144.13,230.61773744]
[1740810003791,0.03,144.16,144.13,211.96808858]
[1740810004415,0.03,144.16,144.11,6.3928]
[1740810004722,0.03,144.16,144.08,79.68634157]
[1740810004897,80.7,144.15,144.08,85.23864157]
[1740810005214,80.7,144.15,144.08,77.50254157]
[1740810005415,80.7,144.14,144.07,6.3928]
[1740810006014,5.5505,144.13,144.07,6.3928]
[1740810006213,86.2505,144.13,144.04,7.7927]
[1740810006516,80.7,144.12,144.04,2.2388]
[1740810006818,80.7,144.12,144.03,83.89534157]
[1740810007005,80.7,144.11,144.0,220.64658858]
[1740810007319,80.7,144.1,144.0,98.53624157]
[1740810008005,5.552,144.09,144.0,98.53624157]
[1740810008715,5.552,144.09,144.0,91.73624157]
[1740810009021,5.552,144.09,144.0,91.73654157]
[1740810011416,86.252,144.09,144.0,91.73654157]
[1740810012604,80.7,144.08,143.98,5.5563]
[1740810012805,7.46890172,144.01,143.89,0.88352262]
[1740810013006,6.92,144.0,143.89,0.88352262]
[1740810013308,10.32063819,144.0,143.89,0.88352262]
[1740810013508,6.92,144.0,143.89,142.26906963]
[1740810013913,5.5559,143.99,143.89,142.26906963]
[1740810014117,5.5559,143.99,143.92,3.2681092]
[1740810014628,20.0,143.96,143.92,3.2681092]
[1740810015212,20.0,143.95,143.92,3.2681092]
[1740810015806,5.5578,143.94,143.92,3.2681092]
[1740810017822,86.2578,143.94,143.92,3.2681092]
[1740810018919,80.7,143.94,143.92,3.2681092]
[1740810019104,86.2579,143.94,143.92,3.2681092]
[1740810019306,5.5579,143.94,143.92,3.2681092]
[1740810019512,5.5563,143.98,143.92,3.2681092]
[1740810022615,5.5563,143.98,143.92,82.98215077]
[1740810022811,5.5551,144.01,143.92,217.44769778]
[1740810023024,5.5551,144.01,143.94,2.0]
[1740810023241,0.03,143.96,143.95,7.02]
[1740810023934,0.03,143.96,143.95,25.66964886]
[1740810024519,0.03,143.96,143.95,237.63773744]
[1740810025238,0.03,143.96,143.95,218.98808858]
[1740810025732,0.03,143.96,143.95,211.96808858]
[1740810026736,0.03,143.96,143.92,82.98215077]
[1740810028020,0.03,143.96,143.92,3.2681092]
[1740810032440,0.03,143.96,143.92,215.23619778]
[1740810032649,0.03,143.96,143.92,217.42619778]
[1740810034856,0.03,143.96,143.93,25.23454886]
[1740810035157,0.03,143.96,143.94,7.0]
[1740810036036,0.03,143.96,143.94,12.5577]
[1740810037042,0.03,143.96,143.95,20.10785209]
[1740810037243,0.03,143.96,143.95,232.07594067]
[1740810037483,0.03,143.96,143.95,230.61773744]
[1740810037757,0.03,143.96,143.95,232.61773744]
[1740810038140,0.03,143.96,143.95,238.17513744]
[1740810039243,5.5524,144.08,143.98,20.64964886]
[1740810039439,5.5524,144.08,144.0,18.64964886]
[1740810040456,5.552,144.09,144.0,24.20484886]
[1740810041754,201.25635686,144.11,144.0,24.20484886]
[1740810041953,5.5517,144.1,144.0,236.17293744]
[1740810042941,5.5517,144.1,144.0,238.36293744]
[1740810043547,5.5517,144.1,144.01,6.5849]
[1740810044143,5.5517,144.1,144.01,218.55298858]
[1740810044556,5.5517,144.1,144.02,5.5547]
[1740810048166,5.5817,144.1,144.02,5.5547]
[1740810049971,5.5817,144.1,144.02,83.05724157]
[1740810052282,19.4609,144.1,144.02,77.50254157]
[1740810052478,87.54,144.09,144.0,2.19]
[1740810053578,19.4335,144.08,144.0,2.19]
[1740810053771,80.7,144.07,144.0,2.19]
[1740810053976,87.1435,144.06,143.97,77.50254157]
[1740810054165,80.7,144.05,143.97,77.50254157]
[1740810055671,19.439,144.04,143.97,77.50254157]
[1740810057693,20.0,144.01,143.97,77.50254157]
[1740810057879,100.139,144.04,143.97,77.50254157]
[1740810058674,86.254,144.04,143.97,83.05914157]
[1740810060558,5.554,144.04,143.98,8.6728]
[1740810060763,94.5828,144.07,143.98,8.6728]
[1740810061002,5.5532,144.06,143.98,86.17534157]
[1740810061563,5.5532,144.06,143.99,5.5559]
[1740810061873,5.5524,144.08,144.0,18.64964886]
[1740810062399,12.3722,144.09,144.0,18.64964886]
[1740810062686,86.2817,144.1,144.0,22.10715734]
[1740810062872,5.5817,144.1,144.0,234.07524592]
[1740810063072,5.5817,144.1,144.0,232.61773744]
[1740810063498,5.5817,144.1,144.02,18.64964886]
[1740810063785,0.03,144.1,144.02,25.44964886]
[1740810063985,0.03,144.1,144.04,18.64964886]
[1740810064192,0.03,144.1,144.04,211.96808858]
[1740810065792,0.03,144.1,144.05,12.0096]
[1740810066165,0.03,144.1,144.06,18.64964886]
[1740810067063,0.03,144.1,144.07,6.82]
[1740810067282,0.03,144.1,144.07,218.78808858]
[1740810068002,0.03,144.1,144.08,24.20204886]
[1740810068294,0.03,144.1,144.08,217.52048858]
[1740810069167,0.03,144.1,144.08,77.50254157]
[1740810069367,0.03,144.1,144.05,83.95854157]
[1740810069562,0.03,144.1,144.03,77.50254157]
[1740810069768,80.7,144.09,144.02,6.8]
[1740810070078,80.7,144.09,144.0,86.35674157]
[1740810071279,5.5524,144.08,144.0,86.35674157]
[1740810071491,100.1335,144.08,144.0,77.50254157]
[1740810071700,80.7,144.07,143.98,77.50254157]
[1740810072078,6.007,144.05,143.96,77.50254157]
[1740810072266,80.7,144.04,143.96,77.50254157]
[1740810072470,80.7,144.04,143.96,77.56554157]
[1740810073191,5.5543,144.03,143.96,77.56554157]
[1740810075069,19.4402,144.03,143.96,77.56554157]
[1740810075295,1.9603,144.02,143.96,77.56554157]
[1740810075586,80.7,144.01,143.96,0.063]
[1740810077376,6.8,144.03,143.96,77.56554157]
[1740810077991,5.554,144.04,143.96,212.03108858]
[1740810078677,5.554,144.04,143.97,18.64964886]
[1740810078882,5.5532,144.06,143.97,96.15219043]
[1740810079194,5.5532,144.06,143.98,5.5563]
[1740810080786,84.23860114,144.08,143.99,18.64964886]
[1740810080787,80.7,144.08,143.99,18.64964886]
[1740810081477,86.2525,144.08,144.0,5.5555]
[1740810081679,5.5525,144.08,144.0,217.52358858]
[1740810081973,5.5525,144.08,144.0,224.28358858]
[1740810082394,0.03,144.09,144.01,18.64964886]
[1740810082601,5.582,144.09,144.01,18.64964886]
[1740810082795,5.582,144.09,144.01,230.61773744]
[1740810082997,19.4622,144.09,144.01,211.96808858]
[1740810083385,19.4622,144.09,144.01,77.50254157]
[1740810083386,80.7,144.08,144.01,77.50254157]
[1740810083586,5.582,144.09,144.01,77.50254157]
[1740810085206,5.582,144.09,144.02,5.5547]
[1740810085799,0.03,144.09,144.03,6.2522]
[1740810086025,0.03,144.09,144.03,85.88844157]
[1740810086299,0.03,144.09,144.03,220.35398858]
[1740810086892,0.03,144.09,144.03,225.90808858]
[1740810087705,0.03,144.09,144.03,232.64808858]
[1740810090319,0.03,144.09,144.03,227.09398858]
[1740810091383,0.03,144.09,144.03,220.35398858]
[1740810091582,0.03,144.09,144.03,85.88844157]
[1740810092586,0.03,144.09,144.03,85.38844157]
[1740810094596,0.03,144.09,144.03,90.94274157]
[1740810095506,0.03,144.09,144.03,225.40828858]
[1740810097402,0.03,144.09,144.03,225.47128858]
[1740810099719,0.03,144.09,144.05,5.5536]
[1740810099896,0.03,144.09,144.05,12.2136]
[1740810100913,0.03,144.09,144.07,5.5528]
[1740810101096,0.03,144.09,144.07,83.05534157]
[1740810102117,0.03,144.09,144.07,217.52088858]
[1740810103419,0.03,144.09,144.07,211.96808858]
[1740810105098,0.03,144.09,144.07,217.52078858]
[1740810106837,0.03,144.09,144.07,77.50254157]
[1740810112431,0.03,144.09,144.05,77.50254157]
[1740810114319,0.03,144.09,144.03,14.5689]
[1740810114518,0.03,144.09,144.03,92.07144157]
[1740810116449,6.57,144.09,144.03,0.063]
[1740810116606,80.7,144.08,144.03,0.063]
[1740810117217,19.4349,144.07,144.03,0.063]
[1740810117519,80.7,144.06,144.03,0.063]
[1740810117733,88.7204,144.05,144.03,0.063]
[1740810117920,6.54,144.04,144.03,0.063]
[1740810118732,12.094,144.04,144.03,0.063]
[1740810121045,84.0976419,144.08,144.03,0.063]
[1740810121238,5.5529,144.07,144.03,0.063]
[1740810121542,5.5525,144.08,144.03,0.063]
[1740810122230,0.03,144.09,144.03,0.063]
[1740810122543,0.03,144.09,144.03,2.1398]
[1740810122905,0.03,144.09,144.03,77.56554157]
[1740810125231,0.03,144.09,144.03,79.64234157]
[1740810129434,0.03,144.09,144.03,85.19664157]
[1740810130235,0.03,144.09,144.03,219.66218858]
[1740810132328,0.03,144.09,144.04,18.64964886]
[1740810133419,0.03,144.09,144.04,230.61773744]
[1740810134019,0.03,144.09,144.05,5.5536]
[1740810138741,0.03,144.09,144.06,30.21824886]
[1740810138935,0.03,144.09,144.07,6.44]
[1740810139725,0.03,144.09,144.08,18.64964886]
[1740810141129,0.03,144.09,144.08,24.20204886]
[1740810142049,0.03,144.09,144.08,236.17013744]
[1740810142447,0.03,144.09,144.08,238.04283744]
[1740810145464,0.03,144.1,144.08,238.04283744]
[1740810146078,0.03,144.09,144.08,238.04283744]
[1740810148337,0.03,144.09,144.08,79.37524157]
[1740810148546,0.03,144.09,144.05,211.96808858]
[1740810151733,0.03,144.09,144.05,217.52158858]
[1740810152746,0.03,144.09,144.06,18.64964886]
[1740810153058,0.03,144.09,144.05,211.96808858]
[1740810153262,0.03,144.09,144.05,77.50254157]
[1740810154259,0.03,144.09,144.05,83.05604157]
[1740810154841,0.03,144.09,144.06,18.64964886]
[1740810155246,0.03,144.09,144.06,24.20244886]
[1740810156961,0.03,144.09,144.06,236.17053744]
[1740810157163,0.03,144.09,144.06,217.52088858]
[1740810159857,0.03,144.09,144.06,83.05534157]
[1740810160257,0.03,144.09,144.07,18.64964886]
[1740810161442,0.03,144.09,144.08,5.5524]
[1740810165246,0.03,144.09,144.06,77.50254157]
[1740810165765,0.03,144.09,144.06,83.05564157]
[1740810165953,0.03,144.09,144.06,217.52118858]
[1740810171145,0.03,144.09,144.06,217.58418858]
[1740810171762,0.03,144.09,144.06,83.11864157]
[1740810174564,0.03,144.09,144.07,24.20214886]
[1740810177877,0.03,144.09,144.07,236.17023744]
[1740810181166,0.03,144.1,144.09,45.14794886]
[1740810181366,0.03,144.1,144.09,257.11603744]
[1740810181877,0.03,144.1,144.09,237.11603744]
[1740810182977,0.03,144.1,144.09,242.66803744]
[1740810186765,0.03,144.1,144.09,224.01838858]
[1740810186962,0.03,144.1,144.09,77.50254157]
[1740810189071,0.03,144.1,144.09,83.05454157]
[1740810189392,0.03,144.1,144.09,236.16973744]
[1740810191584,0.03,144.1,144.09,217.52008858]
[1740810192585,0.03,144.1,144.09,83.05454157]
[1740810192981,0.03,144.1,144.09,101.70419043]
[1740810193970,0.0001,144.1,144.09,103.70419043]
[1740810194165,0.0001,144.1,144.09,101.70419043]
[1740810194572,0.0001,144.1,144.09,103.70419043]
[1740810195666,0.0001,144.1,144.09,105.39209043]
[1740810197387,0.0001,144.1,144.09,241.85763744]
[1740810197580,0.0001,144.11,144.1,43.54964886]
[1740810197786,0.0001,144.11,144.1,51.34601183]
[1740810198782,0.0001,144.11,144.1,56.89771183]
[1740810199165,0.0001,144.11,144.1,63.10661183]
[1740810200765,0.03,144.16,144.13,18.64964886]
[1740810200996,0.03,144.16,144.13,230.61773744]
[1740810201998,0.03,144.16,144.15,18.64964886]
[1740810203475,0.03,144.16,144.15,102.47219043]
[1740810203895,0.03,144.16,144.15,108.02189043]
[1740810204694,0.03,144.23,144.21,27.2932]
[1740810204906,0.03,144.23,144.22,7.79522242]
[1740810205105,0.03,144.23,144.22,6.34]
[1740810205275,0.03,144.23,144.22,218.30808858]
[1740810205678,0.03,144.23,144.22,236.95773744]
[1740810206086,0.03,144.23,144.22,242.50473744]
[1740810208571,0.03,144.23,144.22,89.38954157]
[1740810210780,0.03,144.23,144.22,108.03919043]
[1740810211595,0.03,144.24,144.22,242.50473744]
[1740810211907,0.03,144.24,144.23,18.64964886]
[1740810212086,0.03,144.24,144.22,223.85508858]
[1740810212597,0.03,144.24,144.23,18.64964886]
[1740810212801,0.03,144.24,144.23,24.19624886]
[1740810213380,0.03,144.25,144.23,24.19624886]
[1740810213786,0.03,144.25,144.23,25.6514487]
[1740810214101,0.03,144.3,144.23,39.5181487]
[1740810214281,0.03,144.3,144.23,255.48623728]
[1740810214486,0.03,144.3,144.23,250.03103744]
[1740810216701,0.03,144.3,144.23,252.03103744]
[1740810216906,0.03,144.3,144.25,18.64964886]
[1740810217404,0.03,144.3,144.23,217.51468858]
[1740810219389,0.03,144.3,144.23,83.04914157]
[1740810219590,0.03,144.3,144.24,18.64964886]
[1740810221406,0.03,144.3,144.25,5.5459]
[1740810222506,0.03,144.3,144.26,18.64964886]
[1740810222794,0.03,144.3,144.26,230.61773744]
[1740810223808,0.03,144.3,144.26,236.16323744]
[1740810225383,0.03,144.3,144.26,250.02703744]
[1740810225583,0.03,144.3,144.28,18.64964886]
[1740810227699,0.03,144.3,144.28,24.19414886]
[1740810228303,0.03,144.3,144.28,101.69669043]
[1740810230106,0.03,144.3,144.28,236.16223744]
[1740810230703,0.03,144.3,144.29,24.19394886]
[1740810230904,0.03,144.3,144.29,236.16203744]
[1740810234905,0.03,144.3,144.25,77.56554157]
[1740810235110,0.03,144.3,144.25,0.063]
[1740810236807,0.03,144.3,144.25,77.56554157]
[1740810237713,0.03,144.3,144.26,18.64964886]
[1740810243015,0.03,144.3,144.26,24.19504886]
[1740810243214,0.03,144.3,144.26,236.16313744]
[1740810246520,0.03,144.3,144.28,18.64964886]
[1740810246828,0.03,144.3,144.28,236.93773744]
[1740810247720,0.03,144.3,144.29,5.5443]
[1740810249005,0.03,144.3,144.29,236.16203744]
[1740810259349,0.03,144.3,144.29,77.50254157]
[1740810261252,0.03,144.3,144.26,211.96808858]
[1740810261429,0.03,144.3,144.26,218.24808858]
[1740810262551,0.03,144.3,144.26,223.79348858]
[1740810262750,0.03,144.3,144.26,218.24808858]
[1740810263257,0.03,144.3,144.26,77.50254157]
[1740810264822,0.03,144.3,144.25,0.063]
[1740810265150,6.2176,144.29,144.25,0.063]
[1740810266048,6.912,144.29,144.25,0.063]
[1740810266637,5.5447,144.28,144.25,0.063]
[1740810267246,6.912,144.29,144.25,0.063]
[1740810268649,12.4565,144.29,144.25,0.063]
[1740810268946,6.912,144.29,144.25,0.063]
[1740810270048,0.03,144.3,144.25,77.56554157]
[1740810271040,0.03,144.3,144.26,18.64964886]
[1740810272047,0.03,144.3,144.26,153.11519587]
[1740810272254,0.03,144.37,144.29,38.64964886]
[1740810272451,0.03,144.37,144.36,20.0]
[1740810272751,0.03,144.37,144.35,6.32]
[1740810273447,0.03,144.37,144.34,77.50254157]
[1740810273638,26.23522428,144.41,144.33,6.32]
[1740810273951,5.7636,144.41,144.33,6.32]
[1740810274144,5.7636,144.41,144.32,24.19254886]
[1740810274345,5.7636,144.41,144.32,30.51254886]
[1740810275452,11.3033,144.41,144.32,30.51254886]
[1740810275747,11.3333,144.41,144.32,30.51254886]
[1740810277354,80.7,144.4,144.32,6.32]
[1740810277552,18.64964886,144.39,144.32,6.32]
[1740810278549,19.34184886,144.37,144.28,77.50254157]
[1740810278736,80.7,144.36,144.28,77.50254157]
[1740810278931,18.64964886,144.35,144.28,77.50254157]
[1740810279350,5.5424,144.34,144.28,77.50254157]
[1740810279553,80.7,144.33,144.26,6.3]
[1740810281039,80.7,144.33,144.26,11.8455]
[1740810282356,86.2429,144.33,144.26,11.8455]
[1740810282540,86.2429,144.33,144.26,6.3]
[1740810284747,80.7,144.32,144.25,77.56554157]
[1740810286172,5.5436,144.31,144.25,77.56554157]
[1740810287458,5.5436,144.31,144.25,83.11134157]
[1740810287759,80.7,144.32,144.25,83.11134157]
[1740810288151,80.73,144.32,144.25,83.11134157]
[1740810289059,80.73,144.32,144.26,24.19474886]
[1740810289253,80.73,144.32,144.26,5.5451]
[1740810289875,80.73,144.32,144.25,77.56554157]
[1740810290062,86.2733,144.32,144.25,83.11134157]
[1740810290452,86.2733,144.32,144.25,77.56554157]
[1740810290775,5.5733,144.32,144.25,83.11144157]
[1740810291364,0.03,144.32,144.25,83.11144157]
[1740810291573,0.03,144.32,144.25,77.56554157]
[1740810292670,5.5436,144.31,144.25,77.56554157]
[1740810294453,5.5436,144.31,144.25,83.11134157]
[1740810295666,5.5436,144.31,144.25,77.56554157]
[1740810299276,5.5436,144.31,144.1,1.526e-05]
[1740810299277,2.0,144.11,144.1,1.526e-05]
[1740810299454,13.30059518,144.11,144.08,21.69646313]
[1740810299656,6.55791513,144.1,144.08,18.91462129]
[1740810299856,35.57559895,144.11,144.08,18.91462129]
[1740810300262,2.0,144.1,144.08,18.91462129]
[1740810300468,38.64964886,144.09,144.08,18.91462129]
[1740810300779,22.64964886,144.08,144.06,63.10665073]
[1740810300956,35.34876466,144.08,144.06,63.10665073]
[1740810301150,42.53559895,144.08,144.06,63.10665073]
[1740810301363,14.5312,144.12,144.06,63.10665073]
[1740810301562,6.98,144.12,144.06,63.10665073]
[1740810301965,18.64964886,144.11,144.06,63.10665073]
[1740810302164,18.64964886,144.11,144.07,0.063]
[1740810302456,20.0,144.08,144.07,0.063]
[1740810304280,20.0,144.08,144.0,6.98]
[1740810304582,20.0,144.08,144.0,84.48254157]
[1740810305678,80.7,144.1,144.0,84.48254157]
[1740810308488,80.7,144.09,144.0,84.48254157]
[1740810309782,99.34964886,144.11,144.0,84.48254157]
[1740810309977,91.3619038,144.1,144.0,84.48254157]
[1740810310185,91.3619038,144.1,144.0,90.03804157]
[1740810310688,91.3619038,144.1,144.01,18.64964886]
[1740810310886,91.3619038,144.1,144.01,20.34504886]
[1740810311291,10.6619038,144.1,144.03,18.64964886]
[1740810311492,10.6619038,144.1,144.03,18.71264886]
[1740810311988,10.6619038,144.1,144.04,5.554]
[1740810312571,10.6619038,144.1,144.03,24.26694886]
[1740810312800,10.6619038,144.1,144.03,0.063]
[1740810313004,10.6619038,144.09,144.03,0.063]
[1740810313486,10.6619038,144.09,144.03,77.50254157]
[1740810314094,80.7,144.11,144.03,77.50254157]
[1740810314476,80.7,144.11,144.03,83.05654157]
[1740810315698,80.7,144.11,144.04,18.64964886]